[Event "CCT Airthings Masters Play-In 2023"]
[Site "Online"]
[Date "2023.02.03"]
[Round "2"]
[White "Kobalia, Mikhail"]
[Black "GadimbayliA"]
[Result "0-1"]
[ECO "C40"]
[WhiteElo "2577"]
[BlackElo "2590"]
[Annotator "TA"]
[PlyCount "42"]
[EventDate "2023.02.03"]
[EventType "swiss"]
[EventCountry "NET"]
[SourceTitle "playchess.com"]
[Source "ChessBase"]
[SourceQuality "1"]
[TimeControl "600+2"]

{[%evp 9,42,35,28,31,33,31,31,35,33,33,42,0,0,-40,-32,-34,-31,-52,-32,-57,-21,-25,-26,-32,-34,-34,-37,-43,-11,-15,-10,-4,-3,-734,-724]} 1. e4 {[%emt 0:00:16]} e5 {[%emt 0:00:37]} 2. Nf3 {[%emt 0:00:11]} d5 {[%emt 0:00:02]} 3. d4 {[%emt 0:00:26]} dxe4 {[%emt 0:00:02]} 4. Nxe5 {[%emt 0:00:02]} Bd6 {[%emt 0:00:02]} 5. Nc3 {[%emt 0:00:56]} Bxe5 {[%emt 0:00:03]} 6. dxe5 {[%emt 0:00:01] C40: Latvian and Elephant Gambits.} Qxd1+ {[%emt 0:00:00]} 7. Nxd1 {[%emt 0:00:06]} Nc6 {[%emt 0:00:01][%cal Oc8f5]} 8. Nc3 {[%emt 0:00:02] And now Nd5 would win. White is slightly better.} Bf5 {[%emt 0:00:07]} 9. Bb5 {[%emt 0:00:04]} Nge7 {[%emt 0:00:18]} 10. O-O {[%emt 0:00:04] [#]} a6 $146 {[%emt 0:00:21]} ({Predecessor:} 10... O-O-O 11. Bg5 Rd7 12. Rfe1 h6 13. Bxe7 Rxe7 14. Bxc6 bxc6 15. Nxe4 Rxe5 16. Nc3 Rxe1+ 17. Rxe1 Bxc2 {0-1 Dahl,C (2152)-Brunke,C (2141) GER Cup Net V2 U2400 blitz 2020 (7)}) 11. Bxc6+ {[%emt 0:00:14]} Nxc6 {[%emt 0:00:00]} 12. Bf4 {[%emt 0:00:01]} O-O-O {[%emt 0:00:03]} 13. Rfe1 {[%emt 0:00:02]} Rhe8 {[%emt 0:00:13]} (13... Nb4 $5 {[%cal Rb4c2]} 14. Re2 e3 $15) 14. Nxe4 {[%emt 0:03:35]} Rd4 {[%emt 0:00:01]} (14... Nd4 $5 {[%cal Rd4c2]} 15. Rac1 Ne6 $11) 15. f3 {[%emt 0:00:01]} Bxe4 {[%emt 0:00:03]} 16. Rxe4 {[%emt 0:00:02]} Rxe4 {[%emt 0:00:01]} 17. fxe4 {[%emt 0:00:00]} Nxe5 $11 {[%emt 0:00:00] KRB-KRN} 18. Re1 {[%emt 0:00:18]} f6 {[%emt 0:00:03]} 19. Kf2 {[%emt 0:00:02]} Nc6 {[%emt 0:00:18]} 20. c3 {[%emt 0:00:14]} Ne5 {[%emt 0:00:03]} 21. h3 $2 {[%emt 0:00:07][%mdl 8192] [#]} (21. Bxe5 $11 Rxe5 22. Kf3) 21... Nd3+ {[%emt 0:00:05][%mdl 64] Deflection, Double Attack.   Weighted Error Value: White=0.67/Black=0.06 (flawless)} 0-1

[Event "CCT Airthings Masters Play-In 2023"]
[Site "Online"]
[Date "2023.02.03"]
[Round "2"]
[White "Antipov_Mikhail_Al"]
[Black "Blomqvist, Erik"]
[Result "1-0"]
[ECO "B72"]
[WhiteElo "2576"]
[BlackElo "2510"]
[Annotator "TA"]
[PlyCount "115"]
[EventDate "2023.02.03"]
[EventType "swiss"]
[EventCountry "NET"]
[SourceTitle "playchess.com"]
[Source "ChessBase"]
[SourceQuality "1"]
[TimeControl "600+2"]

{[%evp 10,115,55,45,45,40,60,52,43,50,50,0,10,0,0,0,0,0,0,0,0,0,0,-9,29,0,0,0,37,33,31,10,44,8,12,0,0,0,66,60,75,0,0,0,0,0,0,0,0,0,0,0,0,0,0,0,0,0,0,0,0,-8,0,0,0,0,0,-2,8,0,8,8,8,0,8,0,8,0,8,8,24,20,72,72,362,350,332,323,295,273,29973,29974,29974,29975,29975,29976,29974,29977,29979,29981,29981,29982,29982,29983,29985,29986,29987,29988]} 1. e4 {[%emt 0:00:03]} c5 {[%emt 0:00:03]} 2. Nf3 {[%emt 0:00:01]} d6 {[%emt 0:00:01]} 3. d4 {[%emt 0:00:01]} cxd4 {[%emt 0:00:00]} 4. Nxd4 {[%emt 0:00:01]} Nf6 {[%emt 0:00:01]} 5. Nc3 {[%emt 0:00:00]} g6 {[%emt 0:00:01]} 6. Be3 {[%emt 0:00:02]} Nc6 {[%emt 0:00:01] B72: Sicilian Dragon: 6 Be3, lines with h3+Bc4 and sidelines.} 7. f3 {[%emt 0:00:10] Dodges Ng4} h5 {[%emt 0:00:02]} 8. Qd2 {[%emt 0:00:07]} Nxd4 {[%emt 0:00:01] White is slightly better.} 9. Bxd4 {[%emt 0:00:04]} Bh6 {[%emt 0:00:03]} 10. Be3 {[%emt 0:00:01]} Bxe3 {[%emt 0:00:02]} 11. Qxe3 {[%emt 0:00:00]} Be6 {[%emt 0:00:01]} 12. Bb5+ {[%emt 0:00:08]} Kf8 $1 {[%emt 0:00:01]} 13. O-O-O {[%emt 0:00:02] e5 is the strong threat.} Qa5 {[%emt 0:00:01]} 14. Ba4 {[%emt 0:00:17]} Rc8 {[%emt 0:00:13][%cal Oc8c3] [#] aiming for ...Rxc3!} 15. Rd4 $146 {[%emt 0:00:07]} ({Predecessor:} 15. Bb3 Bxb3 16. axb3 Qa1+ 17. Nb1 Kg7 18. e5 dxe5 19. Qxe5 h4 20. g4 hxg3 21. hxg3 {1-0 Korchmar,V (2438)-Tay,J (2230) Titled Tuesday intern op 06th Dec Early blitz 2022 (2)}) 15... Kg7 {[%emt 0:01:13]} 16. Kb1 {[%emt 0:00:05]} Rc7 {[%emt 0:00:37]} 17. Rc1 {[%emt 0:00:36]} Rhc8 {[%emt 0:00:13]} 18. Bb3 {[%emt 0:00:06]} Bxb3 {[%emt 0:00:09]} 19. axb3 {[%emt 0:00:00]} b5 {[%emt 0:01:06] Prevents Ra4} 20. Nd5 {[%emt 0:00:14]} Nxd5 {[%emt 0:00:04]} 21. exd5 {[%emt 0:00:00]} (21. Rxd5 {keeps more tension.} Qa6 22. Qd4+ Kg8 23. e5) 21... Qb6 {[%emt 0:00:04]} 22. c3 {[%emt 0:00:18]} b4 {[%emt 0:00:31]} 23. c4 {[%emt 0:00:32]} e5 {[%emt 0:00:58]} (23... a5 $11) 24. dxe6 $14 {[%emt 0:00:04]} Re8 {[%emt 0:00:06]} 25. Re4 {[%emt 0:00:49] White is more active.} (25. Rcd1 $16) 25... Qxe3 $11 {[%emt 0:00:05]} 26. Rxe3 {[%emt 0:00:00]} Rxe6 {[%emt 0:00:03]} 27. Rxe6 {[%emt 0:00:26]} fxe6 {[%emt 0:00:02][%mdl 4096] Endgame KR-KR} 28. Rd1 {[%emt 0:00:00]} Rc6 {[%emt 0:00:35]} 29. Kc2 {[%emt 0:00:01]} a5 {[%emt 0:00:19]} 30. Kd3 {[%emt 0:00:09]} Kf6 {[%emt 0:00:16]} 31. Kd4 {[%emt 0:00:05]} g5 {[%emt 0:00:11]} 32. g3 {[%emt 0:00:01]} Rc5 {[%emt 0:00:06]} 33. Ke3 {[%emt 0:00:36]} Re5+ {[%emt 0:00:30]} 34. Kf2 {[%emt 0:00:03]} Ke7 {[%emt 0:00:07]} 35. f4 {[%emt 0:00:03]} gxf4 {[%emt 0:00:19]} 36. gxf4 {[%emt 0:00:00]} Rf5 {[%emt 0:00:10]} 37. Ke3 {[%emt 0:00:04]} d5 {[%emt 0:00:08]} 38. cxd5 {[%emt 0:00:16]} exd5 {[%emt 0:00:05]} 39. Rg1 {[%emt 0:01:40]} d4+ {[%emt 0:00:40]} 40. Ke4 {[%emt 0:00:03]} Rc5 {[%emt 0:00:04]} 41. Rg2 {[%emt 0:00:07]} Kf6 {[%emt 0:00:09]} 42. Kxd4 {[%emt 0:00:31]} Rc1 {[%emt 0:00:03]} 43. Kd3 {[%emt 0:00:36]} h4 {[%emt 0:01:32]} 44. Rg4 {[%emt 0:00:18]} h3 {[%emt 0:00:10]} 45. Rh4 {[%emt 0:00:18]} Kf5 {[%emt 0:00:21]} (45... Rb1 $11 {keeps the balance.}) 46. Rxh3 $16 {[%emt 0:00:03] Black must now prevent Rh5+.} Kxf4 $2 {[%emt 0:00:01][%mdl 8192] Black cannot hold the game after this.} (46... Kg4 $16 {was worth a try.} 47. Re3 Kxf4) 47. Rh5 $18 {[%emt 0:00:01]} Ra1 {[%emt 0:00:03]} 48. Rd5 {[%emt 0:00:32]} Kg4 {[%emt 0:00:05]} 49. Kc2 {[%emt 0:00:01] Rd1 would kill now.} Kh3 $2 {[%emt 0:00:01] [#]} (49... Kf3 $18 50. Rd1 Rxd1 51. Kxd1 Kg4 52. Kd2 Kf4 53. Kd3 Kf3 54. Kd4 Kf4) 50. Rd1 $1 {[%emt 0:00:09] White mates.} Rxd1 {[%emt 0:00:01]} 51. Kxd1 {[%emt 0:00:00]} Kxh2 {[%emt 0:00:01] KPP-KPP} 52. Ke2 {[%emt 0:00:00]} Kg2 {[%emt 0:00:02] [#]} 53. Kd3 $1 {[%emt 0:00:02]} Kf1 {[%emt 0:00:02]} 54. Kc4 {[%emt 0:00:00]} Ke2 {[%emt 0:00:01]} 55. Kb5 {[%emt 0:00:01]} Kd3 {[%emt 0:00:00]} 56. Kxa5 {[%emt 0:00:00]} Kc2 {[%emt 0:00:02]} 57. Kxb4 {[%emt 0:00:00]} Kxb2 {[%emt 0:00:00]} 58. Kc4 {[%emt 0:00:01] Weighted Error Value: White=0.09 (flawless) /Black=0.28 (precise)} 1-0

[Event "CCT Airthings Masters Play-In 2023"]
[Site "Online"]
[Date "2023.02.03"]
[Round "2"]
[White "platy3"]
[Black "Byniolus"]
[Result "1-0"]
[ECO "B07"]
[WhiteElo "2572"]
[BlackElo "2238"]
[Annotator "TA"]
[PlyCount "139"]
[EventDate "2023.02.03"]
[EventType "swiss"]
[EventCountry "NET"]
[SourceTitle "playchess.com"]
[Source "ChessBase"]
[SourceQuality "1"]
[TimeControl "600+2"]

{[%evp 9,138,33,35,0,10,2,16,-6,10,-19,-3,-9,-2,-14,0,-16,-8,-17,-21,-31,0,-3,0,-32,-35,-37,-30,-35,-33,-37,-31,-31,-14,-28,-28,-29,-29,-36,-11,-13,-14,-19,-17,-26,-21,-26,-29,-75,-47,-49,-47,-44,-27,-60,-60,-62,-56,-59,-20,-23,0,0,50,56,49,20,21,26,22,28,48,10,124,120,144,127,174,182,151,149,171,175,489,482,619,602,716,701,801,782,1075,1016,3114,2637,4606,3259,4590,3114,4627,4622,29987,29988,29988,29989,29989,29983,29983,29984,29983,29975,29990,29991,29991,29992,29992,29993,29993,29994,29994,29995,29996,29996,29997,29996,29996,29996,29996,29995,29996,29997,29999]} 1. e4 {[%emt 0:00:03]} d6 {[%emt 0:00:06]} 2. d4 {[%emt 0:00:10]} Nf6 {[%emt 0:00:01]} 3. Nc3 {[%emt 0:00:02]} c6 {[%emt 0:00:02]} 4. Nf3 {[%emt 0:00:17]} Bg4 {[%emt 0:00:04]} 5. Be2 {[%emt 0:00:05]} e6 {[%emt 0:00:02]} 6. Ng1 {[%emt 0:00:05] B07: Pirc Defence: Miscellaneous Systems.} Bxe2 {[%emt 0:00:03]} 7. Ngxe2 {[%emt 0:00:00]} d5 {[%emt 0:00:03]} 8. e5 {[%emt 0:00:39] The position is equal.} Nfd7 {[%emt 0:00:03]} 9. Be3 {[%emt 0:00:45]} c5 {[%emt 0:00:17]} 10. f4 {[%emt 0:00:02][%cal Of4f5]} Nc6 {[%emt 0:00:16] [#]} 11. Qd2 $146 {[%emt 0:00:03]} ({Predecessor:} 11. O-O Be7 12. Kh1 g6 13. g4 cxd4 14. Nxd4 Nxd4 15. Bxd4 a6 16. f5 Bc5 17. fxe6 fxe6 18. Nxd5 {1-0 Bellia,F (2300)-Klinova,M (2275) Formia op 1995}) 11... g6 {[%emt 0:00:16]} 12. O-O {[%emt 0:00:05]} Be7 {[%emt 0:00:13]} 13. a3 {[%emt 0:00:20]} Rc8 {[%emt 0:00:13]} 14. Kh1 {[%emt 0:00:11]} h5 {[%emt 0:00:09]} 15. Rad1 {[%emt 0:00:13]} a6 {[%emt 0:00:30]} 16. Qe1 {[%emt 0:00:17]} (16. dxc5 $5 Bxc5 17. Bxc5 Nxc5 18. Qe3 $11) 16... Qc7 {[%emt 0:00:47]} 17. Qf2 {[%emt 0:00:10]} cxd4 {[%emt 0:00:12]} 18. Nxd4 {[%emt 0:00:03]} Nxd4 {[%emt 0:00:15]} 19. Bxd4 {[%emt 0:00:01][%cal Of4f5]} Bc5 {[%emt 0:00:03]} 20. Ne2 {[%emt 0:00:11]} Qb6 {[%emt 0:00:15]} 21. Rd3 {[%emt 0:01:10]} Bxd4 {[%emt 0:00:34]} 22. Nxd4 {[%emt 0:00:00]} Nc5 {[%emt 0:00:02][%cal Ob6b2]} (22... Qxb2 $2 23. Rb3 Qa2 24. Qg1 $18 (24. Rxb7 Qxa3 25. Nb3 Qa2 $11)) 23. Nb3 {[%emt 0:00:10] [#] And now Rc3 would win.} Na4 {[%emt 0:00:42] Dodges Rc3} 24. Qxb6 {[%emt 0:00:06]} Nxb6 {[%emt 0:00:00]} 25. Nd4 {[%emt 0:00:00]} Na4 {[%emt 0:00:54][%cal Bb6a4,Ba4c5,Bc5e4][%mdl 32]} 26. Rb1 {[%emt 0:00:13]} Nc5 {[%emt 0:00:06]} 27. Re3 {[%emt 0:00:23]} Ne4 {[%emt 0:00:27]} 28. g3 {[%emt 0:00:01]} (28. c3 $1 $11) 28... h4 $17 {[%emt 0:00:09]} 29. Kg2 {[%emt 0:00:09]} hxg3 {[%emt 0:00:09]} 30. hxg3 {[%emt 0:00:00]} Kd7 {[%emt 0:00:03]} (30... g5 $5 {[%cal Rg5f4]} 31. Rh1 Rxh1 32. Kxh1 Ke7 $15) 31. c3 {[%emt 0:00:03]} Rh5 {[%emt 0:00:42]} 32. Rh1 {[%emt 0:00:09] Inhibits g5.} Rxh1 {[%emt 0:00:03]} 33. Kxh1 $15 {[%emt 0:00:01][%mdl 4096] Endgame KRN-KRN} Rh8+ {[%emt 0:00:34]} 34. Kg2 {[%emt 0:00:01]} Kc7 {[%emt 0:00:03]} 35. c4 {[%emt 0:00:08]} Nd2 {[%emt 0:00:53]} (35... Rc8 $11) 36. cxd5 $14 {[%emt 0:00:05]} exd5 {[%emt 0:00:00][%cal Oh8h2]} 37. e6 {[%emt 0:00:03]} Nc4 {[%emt 0:00:25]} 38. Rc3 {[%emt 0:00:04] b3 is the strong threat.} Kd6 $1 {[%emt 0:00:02][%csl LRb2,LRe6]} 39. exf7 {[%emt 0:00:12] Hoping for b3.} Rf8 $1 {[%emt 0:00:01]} 40. f5 {[%emt 0:00:14]} (40. b3 $5 {[%cal Rb3c4]} Nxa3 41. Rc7 {[%mdl 64] Decoy} Kxc7 42. Ne6+ Kd7 43. Nxf8+ Ke7 44. Nxg6+ Kxf7 45. Ne5+ Ke7 46. Kf2 $11) 40... g5 {[%emt 0:00:05]} (40... gxf5 $1 $11 {remains equal.} 41. Nxf5+ Ke5) 41. g4 $16 {[%emt 0:00:10] Black must now prevent Ne6.} Rxf7 {[%emt 0:00:01]} 42. Ne6 {[%emt 0:00:02]} Nxb2 {[%emt 0:00:14] [#]} (42... Ke5 $16) 43. Kg3 $1 $18 {[%emt 0:00:12]} (43. Nxg5 Rg7 44. Ne6 Rxg4+ 45. Kf3 Rg1 $17) 43... Nc4 {[%emt 0:00:27]} 44. Nxg5 {[%emt 0:00:03]} Rg7 {[%emt 0:00:11]} 45. Kf4 {[%emt 0:00:10][%cal Og5e4] Ne4+! would be deadly.} b5 $2 {[%emt 0:00:06]} (45... Re7 {is a better chance.} 46. Rh3 Re1) 46. f6 {[%emt 0:00:09]} Rg8 {[%emt 0:00:12]} 47. Nf3 {[%emt 0:00:32]} a5 {[%emt 0:00:20]} 48. g5 {[%emt 0:00:02]} b4 {[%emt 0:00:01]} 49. axb4 {[%emt 0:00:01]} axb4 {[%emt 0:00:00]} 50. Rb3 {[%emt 0:00:03]} Kc5 {[%emt 0:00:07]} 51. f7 {[%emt 0:00:06]} Rc8 {[%emt 0:00:14]} 52. g6 {[%emt 0:00:02] Threatening mate with g7.} Nd6 {[%emt 0:00:05]} 53. Ne5 {[%emt 0:00:01]} d4 {[%emt 0:00:01]} 54. Nd7+ {[%emt 0:00:42]} Kc4 {[%emt 0:00:00]} 55. Nb6+ {[%emt 0:00:07] White mates.} Kxb3 {[%emt 0:00:02]} 56. Nxc8 {[%emt 0:00:00]} d3 {[%emt 0:00:02]} 57. Nxd6 {[%emt 0:00:09] KN-KPP} ({Weaker is} 57. f8=B d2 58. g7 (58. Nxd6 $2 {loses.} d1=Q $19) 58... d1=Q $11) 57... d2 {[%emt 0:00:01]} 58. f8=Q {[%emt 0:00:00]} ({And not} 58. f8=R d1=Q 59. Nf5 Qd2+ 60. Kg4 Qg2+ 61. Kh5 Qf3+ 62. Kg5 Qg2+ 63. Kh5 Qh1+ 64. Kg5 Qg1+ 65. Kf6 Qa1+ 66. Kg5 (66. Ke6 Qa6+ 67. Kf7 Qd3 $11) 66... Qg1+ 67. Kf6 Qb6+ 68. Kg5 Qg1+ $11) 58... d1=Q {[%emt 0:00:01]} 59. Qf7+ {[%emt 0:00:01]} Ka3 {[%emt 0:00:04]} 60. Nc4+ {[%emt 0:00:02]} Ka2 {[%emt 0:00:03]} 61. Ne3+ {[%emt 0:00:02]} Qb3 {[%emt 0:00:00]} 62. Qxb3+ {[%emt 0:00:02]} Kxb3 {[%emt 0:00:00] KN-KP} 63. g7 {[%emt 0:00:01]} Ka2 {[%emt 0:00:00]} 64. g8=Q+ {[%emt 0:00:01]} b3 {[%emt 0:00:00]} 65. Qc4 {[%emt 0:00:01]} Ka1 {[%emt 0:00:02]} 66. Qa4+ {[%emt 0:00:03]} Kb2 {[%emt 0:00:02]} 67. Nc4+ {[%emt 0:00:00]} Kc3 {[%emt 0:00:01]} 68. Nd2 {[%emt 0:00:02]} Kb2 {[%emt 0:00:03]} 69. Qxb3+ {[%emt 0:00:01]} Ka1 {[%emt 0:00:00]} 70. Qa3# {[%emt 0:00:02] Weighted Error Value: White=0.07 (flawless) /Black=0.33} 1-0

[Event "CCT Airthings Masters Play-In 2023"]
[Site "Online"]
[Date "2023.02.03"]
[Round "2"]
[White "BillieKimbah"]
[Black "GMSrinath"]
[Result "1/2-1/2"]
[ECO "D27"]
[WhiteElo "2566"]
[BlackElo "2865"]
[Annotator "TA"]
[PlyCount "49"]
[EventDate "2023.02.03"]
[EventType "swiss"]
[EventCountry "NET"]
[SourceTitle "playchess.com"]
[Source "ChessBase"]
[SourceQuality "1"]
[TimeControl "600+2"]

{[%evp 11,49,30,38,13,18,10,12,23,20,18,18,17,31,26,27,27,24,14,10,4,9,0,12,-7,0,0,0,0,0,0,27,23,20,14,33,6,37,0,3,0]} 1. d4 {[%emt 0:00:04]} d5 {[%emt 0:00:05]} 2. c4 {[%emt 0:00:01]} dxc4 {[%emt 0:00:00]} 3. Nf3 {[%emt 0:00:04]} Nf6 {[%emt 0:00:03]} 4. e3 {[%emt 0:00:01]} e6 {[%emt 0:00:00]} 5. Bxc4 {[%emt 0:00:01]} c5 {[%emt 0:00:00]} 6. O-O {[%emt 0:00:02]} a6 {[%emt 0:00:02]} 7. Re1 {[%emt 0:00:01] D27: Queen's Gambit Accepted: Classical main line: 7 e4!? and 7 a4.} b5 {[%emt 0:00:12]} 8. Bf1 {[%emt 0:00:15]} cxd4 {[%emt 0:00:04] [#]} 9. Qxd4 $146 {[%emt 0:01:06]} ({Predecessor:} 9. Nxd4 Bb7 10. a4 b4 11. Nd2 Nc6 12. Nxc6 Bxc6 13. Nc4 Qxd1 14. Rxd1 Ne4 15. Bd2 {½-½ Postny,E (2585)-Streltsov,A (2313) ISR-ch 41st Arad 2022 (6)}) 9... Qxd4 {[%emt 0:00:43]} 10. Nxd4 {[%emt 0:00:00]} Bd7 {[%emt 0:00:01]} 11. Bd2 {[%emt 0:00:48]} Nc6 {[%emt 0:00:06]} 12. Nxc6 {[%emt 0:00:02]} Bxc6 {[%emt 0:00:00]} 13. Rc1 {[%emt 0:00:01]} Bd7 {[%emt 0:00:23]} 14. f3 {[%emt 0:00:30]} Bd6 {[%emt 0:00:25]} 15. Nc3 {[%emt 0:01:01][%cal Bb1c3,Bc3e2,Be2d4][%mdl 32]} Ke7 {[%emt 0:00:06]} 16. Rc2 {[%emt 0:00:31]} g5 {[%emt 0:01:39]} 17. Be1 {[%emt 0:00:56]} Rhc8 {[%emt 0:01:22] [#] White must now prevent ...b4.} 18. Rac1 {[%emt 0:00:02]} b4 {[%emt 0:00:07]} 19. Ne2 {[%emt 0:00:09]} Rxc2 {[%emt 0:00:35]} 20. Rxc2 {[%emt 0:00:00]} Rc8 {[%emt 0:00:01]} 21. Rxc8 {[%emt 0:00:05]} Bxc8 {[%emt 0:00:01]} 22. Nd4 {[%emt 0:00:01]} Bb7 {[%emt 0:00:01] Inhibits Nc6+.} 23. h3 {[%emt 0:00:32]} (23. Nb3 $5 {[%cal Rb3a5]}) 23... Nd5 {[%emt 0:00:36]} 24. Kf2 {[%emt 0:00:06]} (24. e4 $5 {[%cal Re4d5]} Nc7 25. Bf2 $14) 24... Be5 {[%emt 0:00:13]} 25. Bc4 {[%emt 0:00:15] An uneventful encounter.   Weighted Error Value: White=0.08 (flawless) /Black=0.06 (flawless)} 1/2-1/2

[Event "CCT Airthings Masters Play-In 2023"]
[Site "Online"]
[Date "2023.02.03"]
[Round "2"]
[White "EvgenyT"]
[Black "Nakamura, Hikaru"]
[Result "0-1"]
[ECO "E11"]
[WhiteElo "2564"]
[BlackElo "2768"]
[Annotator "TA"]
[PlyCount "76"]
[EventDate "2023.02.03"]
[EventType "swiss"]
[EventCountry "NET"]
[SourceTitle "playchess.com"]
[Source "ChessBase"]
[SourceQuality "1"]
[TimeControl "600+2"]

{[%evp 9,76,25,33,7,26,39,36,43,31,27,27,29,25,23,27,20,20,29,39,28,35,13,17,13,17,14,14,1,11,15,8,0,16,0,0,-12,-7,-82,-71,-76,0,-78,-39,-114,-120,-113,-116,-139,-45,-314,-300,-381,-374,-417,-411,-398,-383,-544,-542,-532,-510,-676,-664,-1169,-622,-1801,-1518,-1696,-1623]} 1. d4 {[%emt 0:00:06]} e6 {[%emt 0:00:13]} 2. Nf3 {[%emt 0:00:06]} Nf6 {[%emt 0:00:22]} 3. c4 {[%emt 0:00:03]} Bb4+ {[%emt 0:00:04]} 4. Bd2 {[%emt 0:00:05]} c5 {[%emt 0:00:01]} 5. e3 {[%emt 0:00:05]} b6 {[%emt 0:00:03]} 6. Bd3 {[%emt 0:00:17] E11: Bogo-Indian.} Bb7 {[%emt 0:00:02]} 7. Bxb4 {[%emt 0:00:06]} cxb4 {[%emt 0:00:01]} 8. a3 {[%emt 0:00:19] [#] White is slightly better.} Nc6 $146 {[%emt 0:00:13][%cal Bb8c6,Bc6b4,Bb4a6,Ba6b4][%mdl 32]} ({Predecessor:} 8... bxa3 9. Rxa3 O-O 10. O-O Nc6 11. Nbd2 d6 12. Nh4 d5 13. cxd5 Nxd5 14. Qh5 Nf6 {0-1 Nadir,S (2133)-Dizdar,G (2513) Dubai op 16th 2014 (3)}) 9. O-O {[%emt 0:00:11]} bxa3 {[%emt 0:00:20]} 10. Nxa3 {[%emt 0:00:12]} Nb4 {[%emt 0:00:12] Inhibits e4.} 11. Be2 {[%emt 0:00:27]} a5 {[%emt 0:00:09]} 12. Nc2 {[%emt 0:00:18]} Na6 {[%emt 0:00:10]} 13. Ne5 {[%emt 0:01:42]} d6 {[%emt 0:00:08]} 14. Nd3 {[%emt 0:00:26]} O-O {[%emt 0:00:14]} 15. Bf3 {[%emt 0:00:12]} Bxf3 {[%emt 0:00:13]} 16. Qxf3 {[%emt 0:00:02]} Rc8 {[%emt 0:00:00]} 17. Na3 {[%emt 0:00:07]} Nb4 {[%emt 0:00:06]} 18. Qe2 {[%emt 0:00:04]} d5 {[%emt 0:00:07]} 19. Rfc1 {[%emt 0:00:09]} Qe7 {[%emt 0:00:01]} 20. g3 {[%emt 0:00:25]} Ne4 {[%emt 0:00:33]} 21. cxd5 {[%emt 0:00:16]} (21. Nxb4 $5 Qxb4 22. Rc2 $11) 21... exd5 {[%emt 0:00:14]} 22. Nxb4 {[%emt 0:01:33]} Qxb4 {[%emt 0:00:03]} 23. Rc2 {[%emt 0:00:01]} (23. Qb5 $11 {keeps the balance.}) 23... Rxc2 $17 {[%emt 0:00:19]} 24. Qxc2 {[%emt 0:00:02]} h5 {[%emt 0:00:01]} ({Black should play} 24... b5 $17) 25. h4 {[%emt 0:01:06]} (25. Rc1 $11 {remains equal.}) 25... Nd6 {[%emt 0:00:18] Black has more active pieces.} 26. Qe2 {[%emt 0:00:21]} (26. Rc1 $15) 26... Rc8 {[%emt 0:00:07]} 27. Rb1 {[%emt 0:00:10] White is weak on the light squares} g6 {[%emt 0:00:04]} 28. Kg2 {[%emt 0:00:12] [#]} Qb3 {[%emt 0:00:30]} ({Black should try} 28... a4 $1 $17 {Threatens to win with ...b5.} 29. Rd1 b5) 29. Rd1 $2 {[%emt 0:00:11][%mdl 8192] Loses the game.} (29. g4 $1 $15) 29... b5 $19 {[%emt 0:00:16] Hoping for ...b4.} 30. Rd3 {[%emt 0:01:09] Inhibits b4.} Qa4 {[%emt 0:00:03] aiming for ...b4.} 31. Nb1 {[%emt 0:00:22]} Qc2 {[%emt 0:01:12] Dodges Rc3} 32. Qxc2 {[%emt 0:00:16]} Rxc2 {[%emt 0:00:00][%mdl 4096] Endgame KRN-KRN} 33. Nc3 {[%emt 0:00:01]} (33. Rd2 $142 Rxd2 34. Nxd2) 33... Rxb2 {[%emt 0:00:01] Black is clearly winning.} 34. Nxd5 {[%emt 0:00:01]} a4 {[%emt 0:00:00][%cal Ba5a4,Ba4a3][%mdl 32]} 35. Kf3 {[%emt 0:00:03]} b4 {[%emt 0:00:01] [#] White must now prevent ...b3.} 36. e4 {[%emt 0:00:03]} a3 {[%emt 0:00:01] Strongly threatening ...a2.} 37. e5 {[%emt 0:00:02]} Nb5 {[%emt 0:00:05] ...a2 would be deadly.} 38. Nf6+ {[%emt 0:00:04]} Kg7 {[%emt 0:00:01] Weighted Error Value: White=0.74/Black=0.22 (precise)} 0-1